Cogmind - Beta 13 @@@ ROGUE MODE // 2024.07.29 @ 21:57:19 Player: puppuppit Result: Destroyed by GC-9WK(R) with Subdweller Shrapnel Launcher Performance ------------- Evolutions (0) 0 Regions Visited (3) 600 Robots Destroyed (24) 120 Value Destroyed (302) 302 Prototype IDs (13) 260 Alien Tech Used (0) 0 Bonus (-1) -1 TOTAL SCORE: 1281 Bonus ------- Follower Combat Kills 14 Friendly Fire -15 Cogmind --------- Core Integrity 0/250 Matter 208/300 Energy 99/100 System Corruption 0% Temperature Cool (0) Movement Hovering (76) Location -10/Subcaves Parts ------- > --- POWER (1) -------- (None) > --- PROPULSION (2) --- Backup Propulsion I Backup Propulsion I > --- UTILITY (2) ------ Small Storage Unit Improved Terrain Scanner > --- WEAPON (2) ------- (None) > --- INVENTORY (8) ---- Makeshift Flight Unit Flightbrick Riot Gun Battle Rifle Battle Rifle Peak State ------------ > --- POWER ------------ Light Ion Engine > --- PROPULSION ------- Backup Propulsion I Backup Propulsion I > --- UTILITY ---------- Small Storage Unit Improved Terrain Scanner > --- WEAPON ----------- Makeshift Axe > --- INVENTORY -------- Makeshift Flight Unit Flightbrick Light Assault Rifle Light Assault Rifle Battle Cannon [Rating: 15] Favorites ----------- Power Light Ion Engine Engine Light Ion Engine Propulsion Wheel Wheel Wheel Hover Unit Backup Propulsion I Utility Small Storage Unit Device Improved Terrain Scanner Storage Small Storage Unit Weapon Assault Rifle Energy Gun Medium Laser Ballistic Gun Assault Rifle Ballistic Cannon Battle Cannon Special Weapon Mining Laser Slashing Weapon Makeshift Axe Build | -11 -10 -10 -10 ------- Run | Yrd Mat Min Sub Slots Evolved . | . . . . Power . | . . . . Propulsion . | . . . . Utility . | . . . . Weapon . | . . . . Parts Attached 32 | 9 5 5 13 Power 2 | 1 . . 1 Engine 2 | 1 . . 1 Core . | . . . . Reactor . | . . . . Propulsion 13 | 4 3 3 3 Treads . | . . . . Leg . | . . . . Wheel 10 | 4 3 3 . Hover 3 | . . . 3 Flight . | . . . . Utility 3 | 2 . 1 . Device 2 | 1 . 1 . Storage 1 | 1 . . . Processor . | . . . . Hackware . | . . . . Protection . | . . . . Artifact . | . . . . Weapon 14 | 2 2 1 9 Energy Gun 4 | 2 1 . 1 Energy Cannon . | . . . . Ballistic Gun 5 | . 1 . 4 Ballistic Cannon 1 | . . . 1 Launcher . | . . . . Special Weapon 3 | . . 1 2 Impact Weapon . | . . . . Slashing Weapon 1 | . . . 1 Piercing Weapon . | . . . . Special Melee Weapon . | . . . . Unidentified Prototypes . | . . . . Parts Lost 4 | . . . 4 Power 1 | . . . 1 Propulsion 1 | . . . 1 Utility . | . . . . Weapon 2 | . . . 2 Highest Loss Streak 2 | . . . 2 To Critical Strikes . | . . . . Average Slot Usage (%) 96 | . 100 100 94 Engine 13 | . 14 14 13 Wheel 15 | . 28 28 9 Hover 12 | . . . 18 Device 14 | . 14 14 14 Storage 14 | . 14 14 14 Energy Gun 5 | . 19 13 . Ballistic Gun 13 | . 8 14 14 Ballistic Cannon 1 | . . . 2 Special Weapon 2 | . . . 3 Slashing Weapon 1 | . . . 2 Naked Turns . | . . . . Heaviest Build 13 | 13 13 13 13 Greatest Support 32 | 32 20 20 20 Greatest Overweight (x) . | . . . . Average Overweight (x) . | . . . . Largest Inventory Capacity 8 | 8 8 8 8 Average Capacity 7 | 7 8 8 8 Most Carried 8 | 8 8 8 8 Average Carried 7 | 3 7 7 7 Final Capacity 8 | 8 8 8 8 Final Carried 8 | 8 8 8 8 Class Distribution -------------------- 79% | Mutant 20% | Scavenger-Mutant Dominant Class ---------------- Mutant | -10/Materials Mutant | -10/Mines Mutant | -10/Subcaves Resources | -11 -10 -10 -10 ----------- Run | Yrd Mat Min Sub Matter Collected 715 | 290 114 85 226 Remotely . | . . . . Salvage Created 784 | 232 389 47 116 Parts 61 | 24 19 10 8 Haulers Intercepted . | . . . . Recyclers Shooed 4 | . 4 . . Parts Field Recycled . | . . . . Retrieved Matter . | . . . . Parts Self-Destructed 5 | . . . 5 Prevented . | . . . . Kills | -11 -10 -10 -10 ------- Run | Yrd Mat Min Sub Combat Hostiles Destroyed 9 | . 5 . 4 Guns 9 | . 5 . 4 Classes Destroyed 7 | 3 3 . 1 Worker 3 | 2 1 . . Builder 2 | . 1 1 . Tunneler 7 | 5 . 2 . Recycler 3 | 1 2 . . Swarmer 4 | . 2 . 2 Grunt 3 | . 3 . . Subdweller 2 | . . . 2 Best Kill Streak 6 | 6 2 2 2 Combat Bots Only 2 | . 2 . 2 Max Kills in Single Turn 2 | 1 1 2 1 Gunslinging . | . . . . Exploded . | . . . . Melee . | . . . . Uniques/NPCs Destroyed . | . . . . Combat | -11 -10 -10 -10 -------- Run | Yrd Mat Min Sub Hostile Shots Fired 76 | . 38 . 38 Missed 21 | . 6 . 15 Damage Taken 858 | . 319 . 539 Core 266 | . 91 . 175 Absorbed by Shields . | . . . . Core Remaining (%) 100 | 100 . . . Volleys Fired 119 | 14 40 8 57 Largest 2 | 2 2 2 2 Hottest 100 | 90 90 100 100 Shots Fired 203 | 27 80 13 83 Gun 169 | 27 80 10 52 Cannon 20 | . . . 20 Launcher . | . . . . Special 14 | . . 3 11 Kinetic 100 | . 26 5 69 Thermal 55 | 13 20 8 14 Explosive . | . . . . Electromagnetic 48 | 14 34 . . Robot Hit Streak 10 | 6 7 5 10 Robot Miss Streak 4 | 2 4 2 2 Penetration Max . | . . . . Secondary Targets 2 | . 1 . 1 Max Gunslinging Chain 1 | . 1 . 1 Shots Hit Robots 101 | 15 44 6 36 Core Hits 36 | 8 15 4 9 Critical Kills . | . . . . Critical Parts Destroyed . | . . . . Critical Strikes 2 | 1 1 . . Burn 2 | 1 1 . . Melee Attacks 9 | . . . 9 Impact . | . . . . Slashing 9 | . . . 9 Piercing . | . . . . Sneak Attacks 1 | . . . 1 Combat Hostiles . | . . . . Follow-up Attacks . | . . . . Damage Inflicted 1292 | 241 636 98 317 Guns 1216 | 211 590 98 317 Cannons . | . . . . Explosions 76 | 30 46 . . Melee . | . . . . Ramming . | . . . . Kinetic 487 | . 134 50 303 Thermal 413 | 131 220 48 14 Explosive . | . . . . Electromagnetic 392 | 110 282 . . Impact . | . . . . Slashing . | . . . . Piercing . | . . . . Highest Corruption . | . . . . Average Corruption . | . . . . Corruption Purged . | . . . . Corruption Blocked . | . . . . Overload Shots . | . . . . Overflow Damage . | . . . . Projectiles . | . . . . Explosions . | . . . . Melee . | . . . . Knockbacks . | . . . . Impact . | . . . . Kinetic . | . . . . Secondary . | . . . . Self-Inflicted Damage . | . . . . Shots . | . . . . Rammed . | . . . . Targets Rammed . | . . . . Kicked . | . . . . Crushed . | . . . . Highest Temperature 374 | 150 374 40 . Average Temperature 84 | 52 120 16 . Received Heat Transfer 231 | . 126 . 105 Siege Activations . | . . . . Robots Corrupted . | . . . . Combat Hostiles . | . . . . Parts Fried . | . . . . Impact Corruptions . | . . . . Robots Melted . | . . . . Combat Hostiles . | . . . . Parts Melted 1 | . 1 . . Heat Transferred 1210 | 420 605 148 37 Parts Sabotaged . | . . . . Parts Stolen . | . . . . Parts Stripped . | . . . . Power Chain Reactions 2 | 1 1 . . Alert | -11 -10 -10 -10 ------- Run | Yrd Mat Min Sub Peak Influence 237 | 40 237 107 . Initial 92 | . 26 92 . Average 89 | 18 114 96 . Maximum Alert Level 1 | . 1 . . Low Security (%) 94 | 100 87 100 . Level 1 5 | . 12 . . Level 2 . | . . . . Level 3 . | . . . . Level 4 . | . . . . Level 5 . | . . . . High Security . | . . . . Max Security . | . . . . Squads Dispatched 2 | . 2 . . Investigation 2 | . 2 . . Extermination . | . . . . Reinforcement . | . . . . Assault . | . . . . Garrison . | . . . . Intercept . | . . . . Searches Triggered . | . . . . Construction Impeded . | . . . . Haulers Reinforced . | . . . . Active Scanning Responses . | . . . . Cargo Convoy Interrupts . | . . . . Stealth | -11 -10 -10 -10 --------- Run | Yrd Mat Min Sub Distress Signals 2 | . 2 . . Communications Jammed . | . . . . Distress Signals . | . . . . Times Spotted 25 | . 12 . 13 Peak Tracking Total 6 | . 4 . 6 Tactical Retreats 3 | . 2 . 1 Traps | -11 -10 -10 -10 ------- Run | Yrd Mat Min Sub Traps Triggered 1 | . . . 1 Indirectly . | . . . . Trap Hack Attempts . | . . . . Triggered . | . . . . Disarmed . | . . . . Reprogrammed . | . . . . Reused 1 | . . . 1 Traps Extracted . | . . . . Installed 1 | . . . 1 Triggered . | . . . . Most Traps Carried 1 | . . . 1 Machines | -11 -10 -10 -10 ---------- Run | Yrd Mat Min Sub Machines Disabled 1 | . . . 1 Max in Single Turn 1 | . . . 1 Machines Repaired . | . . . . Machines Dismantled . | . . . . Machines Sabotaged . | . . . . Overloaded Fab Kills . | . . . . Hacking | -11 -10 -10 -10 --------- Run | Yrd Mat Min Sub Machines Accessed 5 | . 4 . 1 Terminals 3 | . 3 . . Fabricators . | . . . . Repair Stations 1 | . 1 . . Recycling Units . | . . . . Scanalyzers . | . . . . Garrison Access . | . . . . Total Hacks 26 | . 17 . 9 Successful 14 | . 5 . 9 Failed 11 | . 11 . . Catastrophic 1 | . 1 . . Database Lockouts 1 | . 1 . . Manual 11 | . 11 . . Terminals 14 | . 14 . . Fabricators . | . . . . Repair Stations 3 | . 3 . . Recycling Units . | . . . . Scanalyzers . | . . . . Garrison Access . | . . . . Terminal Hacks 13 | . 4 . 9 Record 8 | . . . 8 Robot Analysis 2 | . 2 . . Prototype ID Bank 1 | . 1 . . Terminal Index 1 | . 1 . . Derelict Proto ID Bank 1 | . . . 1 Fabricator Hacks . | . . . . Repair Station Hacks 1 | . 1 . . Refit 1 | . 1 . . Recycling Unit Hacks . | . . . . Scanalyzer . | . . . . Garrison Access Hacks . | . . . . Unauthorized Hacks . | . . . . Terminals . | . . . . Fabricators . | . . . . Repair Stations . | . . . . Recycling Units . | . . . . Scanalyzers . | . . . . Garrison Access . | . . . . Data Cores Recovered . | . . . . Used . | . . . . Hacking Detections 4 | . 4 . . Full Trace Events 4 | . 4 . . Feedback Events . | . . . . Feedback Blocked . | . . . . Robot Schematics Acquired . | . . . . Robots Built . | . . . . Authchips . | . . . . Time . | . . . . Total Robot Build Rating . | . . . . Part Schematics Acquired . | . . . . Parts Built . | . . . . Authchips . | . . . . Time . | . . . . Total Part Build Rating . | . . . . Parts Repaired . | . . . . Time . | . . . . Parts Recycled . | . . . . Recycled Matter . | . . . . Retrieved Matter . | . . . . Retrieved Components . | . . . . Parts Scanalyzed . | . . . . Part Schematics Acquired . | . . . . Parts Damaged . | . . . . Bothacking | -11 -10 -10 -10 ------------ Run | Yrd Mat Min Sub Used RIF Installer . | . . . . Robots Hacked . | . . . . Non-combat . | . . . . Combat . | . . . . Robot Hacks Applied . | . . . . Relay Couplers Released . | . . . . Fabnet Peak Effective % . | . . . . Robots Rewired . | . . . . Allies Hacked . | . . . . Hacks Repelled . | . . . . Allies | -11 -10 -10 -10 -------- Run | Yrd Mat Min Sub Total Allies 3 | . . 3 . Largest Group 3 | . . 3 3 Highest-Rated Group 40 | . . 40 40 Highest-Rated Ally 16 | . . 16 16 Total Orders . | . . . . Ally Attacks 8 | . . . 8 Total Damage 64 | . . . 64 Kills 2 | . . . 2 Allies Corrupted . | . . . . Allies Melted . | . . . . Intel | -11 -10 -10 -10 ------- Run | Yrd Mat Min Sub Robot Analysis Total 2 | . 2 . . Derelict Logs Recovered 2 | . . 1 1 Drone Launches . | . . . . Drone Recoveries . | . . . . Exploration | -11 -10 -10 -10 ------------- Run | Yrd Mat Min Sub Turns Passed 1809 | 125 288 272 1124 Spaces Moved 1746 | 69 191 291 1195 Core 1 | 1 . . . Treads . | . . . . Legs . | . . . . Wheels 937 | 68 191 291 387 Hover 808 | . . . 808 Flight . | . . . . Fastest Speed 50 | 50 80 80 66 Average Speed 76 | 91 80 80 74 Slowest Speed 100 | 100 80 80 80 Overloaded Moves . | . . . . Propulsion Burnouts . | . . . . Robots Hopped . | . . . . Cave-ins Triggered . | . . . . Exploration Rate (%) 43 | 4 44 55 69 Regions Visited 3 Branch Regions 2 Pre-discovered Areas 3 | . . 1 2 Known Exits Taken . | . . . . Unknown Exits Taken 3 | 1 1 1 . Scrap Searched 10 | . . 1 9 Spaces Dug . | . . . . Terrain Destroyed 12 | 7 5 . . Melee . | . . . . Projectile . | . . . . AOE 12 | 7 5 . . Terrain Rammed . | . . . . Walls Destroyed . | . . . . Machines Disabled . | . . . . Actions | -11 -10 -10 -10 --------- Run | Yrd Mat Min Sub Total 1991 | 99 249 312 1331 Wait 30 | . . . 30 Move 1743 | 68 190 290 1195 Hop . | . . . . Pick Up 25 | 7 5 3 10 Fast Attach 8 | 7 . . 1 Attach 7 | . 2 . 5 Detach 3 | . 1 . 2 Swap 17 | 2 3 5 7 Drop 29 | 1 8 6 14 Fire 119 | 14 40 8 57 Melee 9 | . . . 9 Ram . | . . . . Kick . | . . . . Crush . | . . . . Escape Stasis . | . . . . Rewire . | . . . . Trap 1 | . . . 1 Miscellaneous . | . . . . Route ------- -11/Scrapyard -10/Materials (discovered 4 exits: [*Mat x2] / [*Min x2]) -10/Mines (discovered 3 exits: [*Mat x2] / *Sub) -10/Subcaves (discovered 2 exits: [*Mat] / [*Rec]) History --------- Turn | Location | Event 24 | -11/Scrapyard | Discovered new exit (range 15) 126 | -11/Scrapyard | Entered Materials 154 | -10/Materials | Central database locked down 266 | -10/Materials | Discovered new exit (range 4) 282 | -10/Materials | Discovered new exit (range 14) 302 | -10/Materials | Build established: Mutant 392 | -10/Materials | Discovered new exit (range 16) 401 | -10/Materials | Discovered new exit (range 16) 414 | -10/Materials | Entered Mines 441 | -10/Mines | Discovered new exit (range 10) 452 | -10/Mines | Met a Derelict bent on vengeance 546 | -10/Mines | Assisted by bots powering up and referring to "LRC-V3" 553 | -10/Mines | Discovered new exit (range 14) 610 | -10/Mines | Learned location of Recycling (-8) 681 | -10/Mines | Discovered new exit (range 3) 686 | -10/Mines | Entered Subcaves 686 | -10/Subcaves | Accompanied by 3 allies 728 | -10/Subcaves | A swath of the cavern ceiling suddenly collapsed 814 | -10/Subcaves | A swath of the cavern ceiling suddenly collapsed 858 | -10/Subcaves | Discovered new exit (range 16) 989 | -10/Subcaves | Build established: Scavenger-Mutant 1051 | -10/Subcaves | Visited 4L-MR0's lab 1068 | -10/Subcaves | Found Flightbrick 1135 | -10/Subcaves | Discovered new exit (range 15) 1242 | -10/Subcaves | Shifting Twisted Machinery released Battle Cannon 1335 | -10/Subcaves | Build established: Mutant 1369 | -10/Subcaves | Core integrity fell below 50% 1438 | -10/Subcaves | Shifting Twisted Machinery released Mak. Flight Unit 1479 | -10/Subcaves | Learned location of Zion (-6) 1479 | -10/Subcaves | Met a Zionite searching for "candidates" 1743 | -10/Subcaves | Shifting Twisted Machinery released Sub. Machine Gun 1779 | -10/Subcaves | Shifting Twisted Machinery released Battle Rifle 1802 | -10/Subcaves | Visited Clippyterm 1810 | -10/Subcaves | Core integrity fell below 20% 1810 | -10/Subcaves | Destroyed by GC-9WK(R) with Subdweller Shrapnel Launcher Last Messages --------------- World map confirmed: -6/Zion. 01701_ Dropped Lgt. Assault Rifle. 01701_ Acquired Riot Gun. Sub. Machine Gun falls loose from the Twisted Machinery. 01770_ Searching scrap... 01770_ Found Battle Rifle. 01770_ Found 18 Matter. 01771_ Acquired 18 matter. 01773_ Dropped Enh. Flamer. 01774_ Acquired Battle Rifle. Battle Rifle falls loose from the Twisted Machinery. 01795_ Dropped Battle Rifle. 01795_ Acquired Battle Rifle. 01796_ Dropped Battle Cannon. 01797_ Acquired Battle Rifle. 01802_ The door opens automatically. 01803_ Mak. Axe destroyed. 01803_ Machine disabled. 01803_ Clippyterm disabled. 01809_ Lgt. Ion Engine destroyed. Map ----- +----------------------------------------------------+ | ?????????????????????????????????????????"" | | ?????????????????#?????????????????????#< | | ?????????????????????????????????????????"" | | ?????????????#???????????????????????????" | | ????????##????????????#??????????????????" ? | | ????????????????????????????????????????????? | | ???????????????????????#????????????????????? | | ????#??????????????? #????????????????????? | | ???????????????????? #????????????????????? | | ??????????????? ???? #????????????????????? | | ???????????????????? ##???????????????????? | | ???????????????????? #???????????????????? | | ?????#?????????????? #???????????????????? | | ?????????#####?##### ###?????????????????? | | ?????#???#"""###""# ##???? #??????????? | | ?????????#" "" #??? "??????????? | | ?????????#" " ### ???????????? | | ?????????#" ?????????????? | | ?????????#" "" ### R ?????????????? | | ?????????#" """ ### R ?????????????????? | | ?????????#"""## ## #??????????????????? | | ?????????###### # #???????????????????? | | ?????????#????##] # #????????????????????? | | ??????????????#"" ## ##??????? ????????????? | | ??????????????#""""# ##????????????????????? | | ??????????????# ""##@ #????????????????????? | | ??????????????# """"" "#????????????????????? | | ??????????????##"""" ""#????#???????????????? | | ????????#????#?#"" ""##???????? ???????????? | | ?????????#?????##" ####?????????????????????? | | ???????????????##" #????????????????????????? | | ???????????????#"" #####???##???????????????? | | ???????????????##" #### ##?#????????????? | | ???????#???#??##"" ## ## #??????????????? | | ??????????#????#"" ## #??????????????? | | ????????????##?# # ### #??????????????? | | ??????#????????###|##### #???????? ?????? | | ????????????????# ### # ##?????????????? | | ????????????????### #???? ????????? | | ?????????????????# ###????????#????? | | ?????????????????### # #######?? [ #???? | | ???????????????????##### ## #??"""##? ? | | ???????????#???????????## ###" "" ?? | | ??????????????#?????????## """"" ?? | | ?????????????#?????????#### "" | | ??????????????????????## ##### "" ? | | ?????????????????????## #??# """## "" | | ??????????????#???????# ##?# " "## "" | | ?????????????????????## ### """ "" | | ????????????????????## ### " | +----------------------------------------------------+ Best States ------------- Heat Dissipation 25 Energy Generation 10 Energy Capacity 125 Matter Stores 300 Matter Capacity 300 Sight Range 16 Terrain Scan Range 16 Terrain Scan Density 10 Evasion (%) 51 Item Schematics ----------------- None Robot Schematics ------------------ None Fabricated ------------ Nothing Alien Tech Used ----------------- None Achievements -------------- None Challenges ------------ None Game ------ Seed MeleeAutogunMicrothruster Manual? 0 Play Time 00:19:33 Cumulative 438.1 hours Start 2024.07.29 @ 21:39:08 End 2024.07.29 @ 21:57:19 Sessions 1 Manual Loads 0 Difficulty Rogue Special Mode None Game No. 159 Rogue 159 Adventurer 0 Explorer 0 Win Type - Total 3 Types 0/0/2/1/0/0/0/0/0 Lore% 71 Gallery% 79 Achievement% 64 Wizard Run 0 Options --------- Layout 0 ASCII 0 Keyboard 1 Movement Arrows Keybinds 0 Fullscreen 1 Font 12/Proggy Map View 83x54 Zoom Use 0% Tactical HUD 1 Map Filters NONE Filters NONE Steam 0 RUN: 83952551-1af8-4896-bee1-8d17f8941a8a